fUST/lending_fUST_20240829
["ID","MTS","AMOUNT","RATE_DAILY","PERIOD"]
[336530485,1724899849423,-1200.0,0.00019178,2]
[336530486,1724899849434,-1200.0,0.00019178,2]
[336530487,1724899849446,-1200.0,0.00019178,2]
[336530488,1724899849456,-1200.0,0.00019178,2]
[336530489,1724899849467,-500.49808961,0.00019178,2]
[336530490,1724899849479,-1200.0,0.00019178,2]
[336530491,1724899849489,-1200.0,0.00019178,2]
[336530492,1724899849499,-1200.0,0.00019178,2]
[336530493,1724899849509,-1200.0,0.00019178,2]
[336530494,1724899849520,-1200.0,0.00019178,2]
[336530495,1724899849531,-1200.0,0.00019178,2]
[336530496,1724899849541,-1200.0,0.00019178,2]
[336530497,1724899849552,-1200.0,0.00019178,2]
[336530498,1724899849562,-1200.0,0.00019178,2]
[336530499,1724899849572,-1200.0,0.00019178,2]
[336530500,1724899849582,-1200.0,0.00019178,2]
[336530501,1724899849592,-1200.0,0.00019178,2]
[336530502,1724899849602,-1200.0,0.00019178,2]
[336530503,1724899849611,-1200.0,0.00019178,2]
[336530504,1724899849621,-1200.0,0.00019178,2]
[336530505,1724899849630,-1200.0,0.00019178,2]
[336530506,1724899849640,-1200.0,0.00019178,2]
[336530507,1724899849651,-1200.0,0.00019178,2]
[336530508,1724899849661,-1200.0,0.00019178,2]
[336530509,1724899849672,-1200.0,0.00019178,2]
[336530510,1724899849682,-1200.0,0.00019178,2]
[336530511,1724899849694,-1886.07,0.00019178,2]
[336530512,1724899849705,-505.28810086,0.00019178,2]
[336530513,1724899849716,-500.0,0.00019178,2]
[336530514,1724899849728,-1200.0,0.00019178,2]
[336530515,1724899849740,-500.0,0.00019178,2]
[336530516,1724899849751,-1200.0,0.00019178,2]
[336530517,1724899849765,-1058.60197112,0.00019178,2]
[336530557,1724901031847,-264.83807896,0.00014247,2]
[336530558,1724901031860,-465.53076104,0.00014247,2]
[336530559,1724901031869,-300.0,0.00016294,2]
[336530560,1724901031879,-173.57171836,0.00016294,2]
[336530586,1724901038143,-126.42828164,0.00016294,2]
[336530587,1724901038155,-1143.28649267,0.00016295,2]
[336530588,1724901038166,-18415.96541652,0.00016295,2]
[336530589,1724901038178,-1186.2273376,0.00016295,2]
[336530590,1724901038630,-4154.52075321,0.00016295,2]
[336530591,1724901038641,-250.0,0.00016888,2]
[336530592,1724901038651,-250.0,0.00016934,2]
[336530593,1724901038660,-250.0,0.00016981,2]
[336530594,1724901038670,-167.893844,0.00016995,2]
[336530595,1724901038680,-250.0,0.00017027,2]
[336530596,1724901038690,-250.0,0.00017073,2]
[336530597,1724901038699,-250.0,0.0001712,2]
[336530598,1724901038709,-128.79994554,0.00017166,2]
[336530599,1724901038721,-121.20005446,0.00017166,2]
[336530600,1724901038731,-250.0,0.00017212,2]
[336530601,1724901038740,-250.0,0.00017259,2]
[336530602,1724901038750,-250.0,0.00017305,2]
[336530603,1724901038760,-250.0,0.00017351,2]
[336530604,1724901038769,-250.0,0.00017398,2]
[336530605,1724901038779,-250.0,0.00017444,2]
[336530606,1724901038789,-2584.27900318,0.00017483,2]
[336530607,1724901038800,-250.0,0.0001749,2]
[336530608,1724901038810,-250.0,0.00017537,2]
[336530609,1724901038820,-250.0,0.00017583,2]
[336530610,1724901038829,-250.0,0.00017629,2]
[336530611,1724901038839,-250.0,0.00017676,2]
[336530612,1724901038849,-250.0,0.00017722,2]
[336530613,1724901038858,-250.0,0.00017768,2]
[336530614,1724901038868,-420.0,0.00017809,2]
[336530615,1724901038877,-420.0,0.00017923,2]
[336530616,1724901038887,-568.48,0.00018431,7]
[336530617,1724901038896,-500.0,0.00018431,7]
[336530618,1724901038906,-500.0,0.00018431,7]
[336530619,1724901038915,-500.0,0.00018431,7]
[336530620,1724901038925,-500.0,0.00018431,7]
[336530621,1724901038934,-500.0,0.00018431,7]
[336530622,1724901038944,-500.0,0.00018431,7]
[336530623,1724901038954,-500.0,0.00018431,7]
[336530624,1724901038963,-500.0,0.00018431,7]
[336530625,1724901038973,-500.0,0.00018431,7]
[336530626,1724901038983,-410.87,0.00018431,7]
[336530627,1724901038993,-500.0,0.00018431,7]
[336530628,1724901039002,-500.0,0.00018431,7]
[336530629,1724901039012,-500.0,0.00018431,7]
[336530630,1724901039021,-500.0,0.00018431,7]
[336530631,1724901039031,-500.0,0.00018431,7]
[336530632,1724901039041,-500.0,0.00018431,7]
[336530633,1724901039050,-2000.0,0.000189,2]
[336530634,1724901039062,-431.64525403,0.000189,2]
[336530635,1724901039073,-354.383617,0.00018904,2]
[336530636,1724901039083,-17060.791197,0.0001899,2]
[336530637,1724901039093,-76016.67,0.00019,3]
[336530638,1724901039103,-19958.33950162,0.00019,2]
[336530639,1724901039113,-431.64525401,0.00019013,2]
[336530640,1724901039123,-151.0,0.00019048,2]
[336530641,1724901039139,-151.0,0.00019048,2]
[336530642,1724901039150,-151.0,0.00019048,2]
[336530643,1724901039159,-151.0,0.00019048,2]
[336530644,1724901039169,-151.0,0.00019048,2]
[336530645,1724901039179,-439.644213,0.00019048,2]
[336530646,1724901039188,-17060.791197,0.00019048,2]
[336530647,1724901039198,-543.00663,0.00019056,2]
[336530648,1724901039208,-543.00663,0.00019056,2]
[336530649,1724901039218,-151.0,0.00019056,2]
[336530650,1724901039227,-174.941611,0.00019056,2]
[336530651,1724901039238,-174.941611,0.00019056,2]
[336530652,1724901039247,-168.84129,0.00019058,2]
[336530653,1724901039257,-168.84129,0.00019058,2]
[336530654,1724901039266,-571.723503,0.00019058,2]
[336530655,1724901039275,-571.723503,0.00019058,2]
[336530656,1724901039285,-151.0,0.00019058,2]
[336530657,1724901039294,-429.495217,0.00019058,2]
[336530658,1724901039304,-429.495217,0.00019058,2]
[336530659,1724901039314,-151.0,0.00019058,2]
[336530660,1724901039323,-151.0,0.00019068,2]
[336530661,1724901039333,-151.0,0.00019068,2]
[336530662,1724901039342,-151.0,0.00019068,2]
[336530663,1724901039352,-151.0,0.00019068,2]
[336530664,1724901039361,-151.0,0.00019068,2]
[336530665,1724901039370,-151.0,0.00019068,2]
[336530666,1724901039384,-989.17465039,0.00019078,2]
[336530667,1724901039394,-543.00663,0.00019078,2]
[336530668,1724901039403,-543.00663,0.00019078,2]
[336530669,1724901039413,-3264.565393,0.00019078,2]
[336530670,1724901039423,-151.0,0.00019078,2]
[336530671,1724901039432,-174.941611,0.00019078,2]
[336530672,1724901039442,-174.941611,0.00019078,2]
[336530673,1724901039452,-10222.51029737,0.00019078,2]
[336530674,1724901039462,-431.64525401,0.00019126,2]
[336530675,1724901039472,-163.42324438,0.00019167,2]
[336530676,1724901039481,-151.0,0.00019168,2]
[336530677,1724901039490,-152.754343,0.00019168,2]
[336530678,1724901039500,-151.0,0.00019168,2]
[336530679,1724901039510,-151.0,0.00019168,2]
[336530680,1724901039519,-151.0,0.00019168,2]
[336530681,1724901039529,-151.0,0.00019168,2]
[336530682,1724901039538,-168.84129,0.00019168,2]
[336530683,1724901039548,-168.84129,0.00019168,2]
[336530684,1724901039557,-571.723503,0.00019168,2]
[336530685,1724901039566,-571.723503,0.00019168,2]
[336530686,1724901039577,-151.0,0.00019168,2]
[336530687,1724901039586,-151.0,0.00019168,2]
[336530688,1724901039596,-429.495217,0.00019168,2]
[336530689,1724901039605,-429.495217,0.00019168,2]
[336530690,1724901039615,-429.495217,0.00019168,2]
[336530691,1724901039624,-429.495217,0.00019168,2]
[336530692,1724901039634,-151.0,0.00019168,2]
[336530693,1724901039644,-281.802418,0.00019168,2]
[336530694,1724901039654,-543.00663,0.00019168,2]
[336530695,1724901039663,-543.00663,0.00019168,2]
[336530696,1724901039672,-162.391877,0.00019168,2]
[336530697,1724901039682,-151.0,0.00019168,2]
[336530698,1724901039691,-174.941611,0.00019168,2]
[336530699,1724901039700,-174.941611,0.00019168,2]
[336530700,1724901039711,-256.884131,0.00019168,2]
[336530701,1724901039721,-151.0,0.00019168,2]
[336530702,1724901039731,-151.0,0.00019168,2]
[336530703,1724901039740,-289.876237,0.00019168,2]
[336530704,1724901039750,-151.0,0.00019168,2]
[336530705,1724901039761,-151.0,0.00019168,2]
[336530706,1724901039771,-439.644213,0.00019168,2]
[336530707,1724901039780,-439.644213,0.00019168,2]
[336530708,1724901039790,-119425.538379,0.00019168,2]
[336530709,1724901039800,-170.20731495,0.00019173,2]
[336530710,1724901039810,-5653.93081082,0.00019174,2]
[336530711,1724901039820,-975.9463376,0.00019177,2]
[336530712,1724901039829,-2067.06427814,0.00019178,5]
[336530713,1724901039839,-500.0,0.00019178,2]
[336530714,1724901039848,-500.0,0.00019178,2]
[336530715,1724901039858,-500.0,0.00019178,2]
[336530716,1724901039868,-503.02106034,0.00019178,2]
[336530717,1724901039878,-500.0,0.00019178,2]
[336530718,1724901039887,-230.42956364,0.00019178,2]
[336530720,1724901039896,-503.81420238,0.00019178,2]
[336530722,1724901039907,-239.82872567,0.00019178,2]
[336530724,1724901039917,-500.0,0.00019178,2]
[336530725,1724901039927,-501.2264326,0.00019178,2]
[336530727,1724901039937,-500.0,0.00019178,2]
[336530728,1724901039948,-500.0,0.00019178,2]
[336530729,1724901039958,-500.0,0.00019178,2]
[336530730,1724901039967,-172.14993318,0.00019178,2]
[336530731,1724901039977,-500.0,0.00019178,2]
[336530732,1724901039986,-500.0,0.00019178,2]
[336530733,1724901039996,-500.0,0.00019178,2]
[336530734,1724901040006,-502.32337793,0.00019178,2]
[336530735,1724901040015,-277.57935808,0.00019178,2]
[336530736,1724901040024,-500.0,0.00019178,2]
[336530737,1724901040034,-500.0,0.00019178,2]
[336530738,1724901040043,-500.0,0.00019178,2]
[336530739,1724901040053,-500.0,0.00019178,2]
[336530740,1724901040066,-500.0,0.00019178,2]
[336530741,1724901040075,-500.0,0.00019178,2]
[336530742,1724901040084,-500.0,0.00019178,2]
[336530743,1724901040094,-501.41878933,0.00019178,2]
[336530744,1724901040104,-502.03566985,0.00019178,2]
[336530746,1724901040114,-502.57191895,0.00019178,2]
[336530747,1724901040123,-500.0,0.00019178,2]
[336530748,1724901040134,-500.0,0.00019178,2]
[336530749,1724901040145,-500.0,0.00019178,2]
[336530750,1724901040155,-500.0,0.00019178,2]
[336530751,1724901040165,-500.0,0.00019178,2]
[336530752,1724901040175,-501.35131577,0.00019178,2]
[336530753,1724901040184,-500.0,0.00019178,2]
[336530754,1724901040194,-500.0,0.00019178,2]
[336530755,1724901040204,-500.0,0.00019178,2]
[336530756,1724901040214,-500.0,0.00019178,2]
[336530757,1724901040223,-500.0,0.00019178,2]
[336530758,1724901040234,-502.7626678,0.00019178,2]
[336530759,1724901040244,-501.49547006,0.00019178,2]
[336530760,1724901040254,-500.0,0.00019178,2]
[336530761,1724901040264,-500.0,0.00019178,2]
[336530762,1724901040274,-500.0,0.00019178,2]
[336530763,1724901040283,-500.0,0.00019178,2]
[336530764,1724901040293,-500.0,0.00019178,2]
[336530765,1724901040304,-501.54095349,0.00019178,2]
[336530766,1724901040313,-501.80640357,0.00019178,2]
[336530767,1724901040325,-500.76343885,0.00019178,2]
[336530768,1724901040336,-500.0,0.00019178,2]
[336530769,1724901040346,-501.04146777,0.00019178,2]
[336530770,1724901040356,-500.0,0.00019178,2]
[336530771,1724901040367,-500.0,0.00019178,2]
[336530772,1724901040377,-500.0,0.00019178,2]
[336530773,1724901040387,-500.0,0.00019178,2]
[336530774,1724901040398,-500.98685726,0.00019178,2]
[336530775,1724901040407,-500.0,0.00019178,2]
[336530776,1724901040417,-500.4735399,0.00019178,2]
[336530777,1724901040427,-500.0,0.00019178,2]
[336530778,1724901040437,-500.0,0.00019178,2]
[336530779,1724901040447,-508.68282469,0.00019178,2]
[336530780,1724901040456,-397.55711037,0.00019178,2]
[336530781,1724901040466,-364.16002508,0.00019178,2]
[336530782,1724901040475,-500.0,0.00019178,2]
[336530783,1724901040484,-500.0,0.00019178,2]
[336530784,1724901040493,-500.63119532,0.00019178,2]
[336530785,1724901040503,-501.59050724,0.00019178,2]
[336530786,1724901040512,-502.54978621,0.00019178,2]
[336530787,1724901040522,-181.310294,0.00019178,2]
[336530788,1724901040532,-500.0,0.00019178,2]
[336530789,1724901040543,-500.0,0.00019178,2]
[336530790,1724901040553,-500.0,0.00019178,2]
[336530791,1724901040563,-503.32264384,0.00019178,2]
[336530792,1724901040573,-501.67722022,0.00019178,2]
[336530793,1724901040582,-500.0,0.00019178,2]
[336530794,1724901040592,-500.0,0.00019178,2]
[336530795,1724901040602,-500.0,0.00019178,2]
[336530796,1724901040612,-500.0,0.00019178,2]
[336530797,1724901040621,-499.99373725,0.00019178,2]
[336530798,1724901040631,-500.0,0.00019178,2]
[336530799,1724901040641,-500.0,0.00019178,2]
[336530800,1724901040651,-500.0,0.00019178,2]
[336530801,1724901040661,-500.0,0.00019178,2]
[336530802,1724901040671,-500.0,0.00019178,2]
[336530803,1724901040680,-500.0,0.00019178,2]
[336530804,1724901040690,-500.0,0.00019178,2]
[336530805,1724901040699,-504.39846348,0.00019178,2]
[336530806,1724901040708,-500.0,0.00019178,2]
[336530807,1724901040718,-501.05844802,0.00019178,2]
[336530808,1724901040728,-500.0,0.00019178,2]
[336530809,1724901040738,-500.0,0.00019178,2]
[336530810,1724901040748,-500.0,0.00019178,2]
[336530811,1724901040758,-500.0,0.00019178,2]
[336530812,1724901040767,-500.0,0.00019178,2]
[336530813,1724901040777,-500.0,0.00019178,2]
[336530814,1724901040786,-500.0,0.00019178,2]
[336530815,1724901040796,-500.0,0.00019178,2]
[336530816,1724901040806,-500.0,0.00019178,2]
[336530817,1724901040816,-500.0,0.00019178,2]
[336530818,1724901040825,-500.0,0.00019178,2]
[336530819,1724901040835,-500.0,0.00019178,2]
[336530820,1724901040845,-503.0344077,0.00019178,2]
[336530821,1724901040855,-504.36866661,0.00019178,2]
[336530822,1724901040865,-505.35195191,0.00019178,2]
[336530823,1724901040875,-500.0,0.00019178,2]
[336530824,1724901040885,-509.29481874,0.00019178,2]
[336530825,1724901040895,-151.0,0.00019178,2]
[336530826,1724901040904,-151.0,0.00019178,2]
[336530827,1724901040914,-151.0,0.00019178,2]
[336530828,1724901040924,-151.0,0.00019178,2]
[336530829,1724901040934,-151.0,0.00019178,2]
[336530830,1724901040943,-151.0,0.00019178,2]
[336530831,1724901040953,-151.0,0.00019178,2]
[336530832,1724901040963,-151.0,0.00019178,2]
[336530833,1724901040972,-500.0,0.00019178,2]
[336530834,1724901040982,-507.85892858,0.00019178,2]
[336530835,1724901040991,-209.035568,0.00019178,2]
[336530836,1724901041000,-500.0,0.00019178,2]
[336530837,1724901041009,-500.0,0.00019178,2]
[336530838,1724901041019,-151.0,0.00019178,2]
[336530839,1724901041029,-151.0,0.00019178,2]
[336530840,1724901041038,-151.0,0.00019178,2]
[336530841,1724901041048,-151.0,0.00019178,2]
[336530842,1724901041060,-161.486919,0.00019178,2]
[336530843,1724901041070,-500.0,0.00019178,2]
[336530844,1724901041080,-500.0,0.00019178,2]
[336530845,1724901041089,-500.0,0.00019178,2]
[336530846,1724901041099,-500.0,0.00019178,2]
[336530847,1724901041109,-500.0,0.00019178,2]
[336530848,1724901041118,-500.0,0.00019178,2]
[336530849,1724901041129,-501.89801338,0.00019178,2]
[336530850,1724901041139,-500.0,0.00019178,2]
[336530851,1724901041150,-500.0,0.00019178,2]
[336530852,1724901041160,-500.0,0.00019178,2]
[336530853,1724901041170,-500.0,0.00019178,2]
[336530854,1724901041179,-500.0,0.00019178,2]
[336530855,1724901041188,-500.0,0.00019178,2]
[336530856,1724901041198,-500.0,0.00019178,2]
[336530857,1724901041208,-500.0,0.00019178,2]
[336530858,1724901041218,-505.78034997,0.00019178,2]
[336530859,1724901041227,-500.0,0.00019178,2]
[336530860,1724901041238,-500.0,0.00019178,2]
[336530861,1724901041248,-500.0,0.00019178,2]
[336530862,1724901041258,-500.0,0.00019178,2]
[336530863,1724901041268,-500.0,0.00019178,2]
[336530864,1724901041277,-502.59503862,0.00019178,2]
[336530865,1724901041287,-500.0,0.00019178,2]
[336530866,1724901041298,-500.0,0.00019178,2]
[336530867,1724901041307,-500.0,0.00019178,2]
[336530868,1724901041317,-500.0,0.00019178,2]
[336530869,1724901041327,-500.0,0.00019178,2]
[336530870,1724901041337,-500.0,0.00019178,2]
[336530871,1724901041452,-500.0,0.00019178,2]
[336530872,1724901041463,-500.0,0.00019178,2]
[336530873,1724901041473,-500.0,0.00019178,2]
[336530874,1724901041482,-502.86614356,0.00019178,2]
[336530875,1724901041491,-503.25130924,0.00019178,2]
[336530876,1724901041501,-500.0,0.00019178,2]
[336530877,1724901041510,-500.0,0.00019178,2]
[336530878,1724901041520,-500.0,0.00019178,2]
[336530879,1724901041530,-500.0,0.00019178,2]
[336530880,1724901041540,-500.0,0.00019178,2]
[336530881,1724901041549,-500.0,0.00019178,2]
[336530882,1724901041559,-168.84129,0.00019178,2]
[336530883,1724901041569,-168.84129,0.00019178,2]
[336530884,1724901041579,-168.84129,0.00019178,2]
[336530885,1724901041588,-168.84129,0.00019178,2]
[336530886,1724901041598,-168.84129,0.00019178,2]
[336530887,1724901041608,-168.84129,0.00019178,2]
[336530888,1724901041618,-500.0,0.00019178,2]
[336530889,1724901041628,-168.84129,0.00019178,2]
[336530890,1724901041638,-500.0,0.00019178,2]
[336530891,1724901041647,-168.84129,0.00019178,2]
[336530892,1724901041657,-500.0,0.00019178,2]
[336530893,1724901041667,-168.84129,0.00019178,2]
[336530894,1724901041676,-168.84129,0.00019178,2]
[336530895,1724901041686,-168.84129,0.00019178,2]
[336530896,1724901041696,-168.84129,0.00019178,2]
[336530897,1724901041706,-168.84129,0.00019178,2]
[336530898,1724901041715,-168.84129,0.00019178,2]
[336530899,1724901041725,-168.84129,0.00019178,2]
[336530900,1724901041734,-438.91504249,0.00019178,2]
[336530901,1724901041755,-63.36568717,0.00019178,2]
[336530902,1724901041765,-168.841293,0.00019178,2]
[336530903,1724901041775,-501.31917051,0.00019178,2]
[336530904,1724901041785,-500.0,0.00019178,2]
[336530905,1724901041795,-500.0,0.00019178,2]
[336530906,1724901041804,-471.9781906,0.00019178,2]
[336530907,1724901041814,-612.45287567,0.00019178,2]
[336530908,1724901041823,-500.0,0.00019178,2]
[336530909,1724901041833,-433.82839045,0.00019178,2]
[336530910,1724901041843,-500.0,0.00019178,2]
[336530911,1724901041853,-501.16684777,0.00019178,2]
[336530912,1724901041862,-571.723503,0.00019178,2]
[336530913,1724901041872,-571.723503,0.00019178,2]
[336530914,1724901041881,-500.0,0.00019178,2]
[336530915,1724901041891,-571.723503,0.00019178,2]
[336530916,1724901041900,-571.723503,0.00019178,2]
[336530917,1724901041910,-500.0,0.00019178,2]
[336530918,1724901041919,-571.723503,0.00019178,2]
[336530919,1724901041928,-209.655356,0.00019178,2]
[336530920,1724901041938,-571.723503,0.00019178,2]
[336530921,1724901041948,-209.655356,0.00019178,2]
[336530922,1724901041958,-571.723503,0.00019178,2]
[336530923,1724901041967,-571.723503,0.00019178,2]
[336530924,1724901041978,-209.655356,0.00019178,2]
[336530925,1724901041987,-205.16415173,0.00019178,2]
[336530926,1724901041997,-209.655356,0.00019178,2]
[336530927,1724901042006,-209.655365,0.00019178,2]
[336530928,1724901042015,-571.723503,0.00019178,2]
[336530929,1724901042025,-571.723503,0.00019178,2]
[336530930,1724901042034,-571.723503,0.00019178,2]
[336530931,1724901042043,-571.723503,0.00019178,2]
[336530932,1724901042052,-571.723503,0.00019178,2]
[336530933,1724901042066,-571.723503,0.00019178,2]
[336530934,1724901042077,-571.723503,0.00019178,2]
[336530935,1724901042087,-571.723503,0.00019178,2]
[336530936,1724901042096,-500.0,0.00019178,2]
[336530937,1724901042107,-503.60226031,0.00019178,2]
[336530938,1724901042116,-500.0,0.00019178,2]
[336530939,1724901042126,-500.0,0.00019178,2]
[336530940,1724901042137,-501.76160786,0.00019178,2]
[336530941,1724901042147,-500.0,0.00019178,2]
[336530942,1724901042156,-500.0,0.00019178,2]
[336530943,1724901042166,-500.0,0.00019178,2]
[336530944,1724901042175,-500.0,0.00019178,2]
[336530945,1724901042184,-500.0,0.00019178,2]
[336530946,1724901042194,-151.0,0.00019178,2]
[336530947,1724901042203,-151.0,0.00019178,2]
[336530948,1724901042213,-151.0,0.00019178,2]
[336530949,1724901042222,-500.0,0.00019178,2]
[336530950,1724901042232,-175.227706,0.00019178,2]
[336530951,1724901042242,-500.0,0.00019178,2]
[336530952,1724901042252,-429.495217,0.00019178,2]
[336530953,1724901042261,-429.495217,0.00019178,2]
[336530954,1724901042270,-429.495217,0.00019178,2]
[336530955,1724901042279,-429.495217,0.00019178,2]
[336530956,1724901042289,-429.495217,0.00019178,2]
[336530957,1724901042298,-429.495217,0.00019178,2]
[336530958,1724901042307,-429.495217,0.00019178,2]
[336530959,1724901042317,-429.495217,0.00019178,2]
[336530960,1724901042327,-429.495217,0.00019178,2]
[336530962,1724901042337,-502.26947299,0.00019178,2]
[336530963,1724901042346,-429.495217,0.00019178,2]
[336530964,1724901042356,-429.495217,0.00019178,2]
[336530965,1724901042365,-429.495217,0.00019178,2]
[336530966,1724901042375,-429.495217,0.00019178,2]
[336530967,1724901042389,-429.49522,0.00019178,2]
[336530968,1724901042400,-619.11,0.00019178,2]
[336530969,1724901042410,-500.0,0.00019178,2]
[336530970,1724901042420,-500.0,0.00019178,2]
[336530971,1724901042430,-501.33421266,0.00019178,2]
[336530972,1724901042439,-500.0,0.00019178,2]
[336530973,1724901042449,-500.0,0.00019178,2]
[336530974,1724901042459,-1598.93,0.00019178,2]
[336530975,1724901042468,-500.0,0.00019178,2]
[336530976,1724901042477,-500.0,0.00019178,2]
[336530977,1724901042487,-1807.48,0.00019178,2]
[336530978,1724901042497,-501.93930048,0.00019178,2]
[336530979,1724901042506,-500.0,0.00019178,2]
[336530980,1724901042516,-500.0,0.00019178,2]
[336530981,1724901042526,-500.0,0.00019178,2]
[336530982,1724901042536,-500.0,0.00019178,2]
[336530983,1724901042545,-500.0,0.00019178,2]
[336530984,1724901042555,-503.14662438,0.00019178,2]
[336530985,1724901042564,-503.32225029,0.00019178,2]
[336530986,1724901042574,-500.0,0.00019178,2]
[336530987,1724901042583,-1018.25,0.00019178,2]
[336530988,1724901042592,-514.78518479,0.00019178,2]
[336530989,1724901042601,-500.0,0.00019178,2]
[336530990,1724901042610,-501.4546758,0.00019178,2]
[336530991,1724901042619,-503.13512186,0.00019178,2]
[336530992,1724901042629,-501.33338861,0.00019178,2]
[336530993,1724901042639,-500.0,0.00019178,2]
[336530994,1724901042649,-500.0,0.00019178,2]
[336530995,1724901042658,-502.71397589,0.00019178,2]
[336530996,1724901042667,-503.86334005,0.00019178,2]
[336530997,1724901042676,-500.0,0.00019178,2]
[336530998,1724901042686,-500.0,0.00019178,2]
[336530999,1724901042695,-500.0,0.00019178,2]
[336531000,1724901042705,-500.0,0.00019178,2]
[336531001,1724901042714,-500.0,0.00019178,2]
[336531002,1724901042724,-502.59190072,0.00019178,2]
[336531003,1724901042733,-596.08,0.00019178,2]
[336531004,1724901042743,-500.0,0.00019178,2]
[336531005,1724901042753,-500.0,0.00019178,2]
[336531006,1724901042762,-500.0,0.00019178,2]
[336531007,1724901042771,-501.0299058,0.00019178,2]
[336531008,1724901042780,-500.0,0.00019178,2]
[336531009,1724901042789,-501.2056711,0.00019178,2]
[336531010,1724901042799,-1380.48,0.00019178,2]
[336531011,1724901042808,-500.0,0.00019178,2]
[336531012,1724901042817,-500.18813782,0.00019178,2]
[336531013,1724901042826,-504.25289437,0.00019178,2]
[336531014,1724901042836,-1335.67,0.00019178,2]
[336531015,1724901042845,-403.06978776,0.00019178,2]
[336531016,1724901043051,-101.7305304,0.00019048,2]
[336531022,1724901046105,-337.9136826,0.00019048,2]
[336531023,1724901046115,-157.241517,0.00019048,2]
[336531024,1724901046124,-439.644213,0.00019168,2]
[336531025,1724901046133,-439.644213,0.00019168,2]
[336531026,1724901046144,-487.9731688,0.00019177,2]
[336531027,1724901046153,-96.93021224,0.00019178,2]
[336531028,1724901046162,-500.0,0.00019178,2]
[336531029,1724901046172,-500.0,0.00019178,2]
[336531030,1724901046182,-500.0,0.00019178,2]
[336531031,1724901046191,-500.0,0.00019178,2]
[336531032,1724901046200,-501.14222906,0.00019178,2]
[336531033,1724901046210,-501.33449966,0.00019178,2]
[336531034,1724901046219,-11371.89,0.00019178,2]
[336531035,1724901046228,-526.87896737,0.00019178,2]
[336531036,1724901046237,-500.0,0.00019178,2]
[336531037,1724901046246,-500.0,0.00019178,2]
[336531038,1724901046255,-508.52232539,0.00019178,2]
[336531039,1724901046265,-1006.59812649,0.00019178,2]
[336531040,1724901046274,-500.0,0.00019178,2]
[336531041,1724901046283,-501.42617529,0.00019178,2]
[336531042,1724901046292,-500.0,0.00019178,2]
[336531043,1724901046302,-500.0,0.00019178,2]
[336531044,1724901046311,-500.0,0.00019178,2]
[336531045,1724901046319,-500.0,0.00019178,2]
[336531046,1724901046329,-1200.0,0.00019178,2]
[336531047,1724901046338,-1200.0,0.00019178,2]
[336531048,1724901046347,-698.49,0.00019178,2]
[336531049,1724901046356,-1200.0,0.00019178,2]
[336531050,1724901046366,-1200.0,0.00019178,2]
[336531051,1724901046375,-1200.0,0.00019178,2]
[336531052,1724901046384,-1200.0,0.00019178,2]
[336531053,1724901046393,-500.0,0.00019178,2]
[336531054,1724901046402,-162.864602,0.00019178,2]
[336531055,1724901046411,-500.0,0.00019178,2]
[336531056,1724901046421,-614.66448554,0.00019178,2]
[336531057,1724901046431,-500.0,0.00019178,2]
[336531058,1724901046440,-502.40744424,0.00019178,2]
[336531059,1724901046449,-8568.76,0.00019178,2]